fUST/lending_fUST_20250209
["ID","MTS","AMOUNT","RATE_DAILY","PERIOD"]
[352303627,1739033441869,-502.3,0.00011232,2]
[352303629,1739033441878,-1103.85,0.00011232,2]
[352303631,1739033441888,-500.0,0.00011232,2]
[352303633,1739033441897,-926.6,0.00011232,2]
[352303635,1739033441912,-500.0,0.00011232,2]
[352303637,1739033441933,-5484.14,0.00011232,2]
[352303639,1739033441943,-500.0,0.00011232,2]
[352303641,1739033441952,-1011.35,0.00011232,2]
[352303643,1739033441962,-2169.19,0.00011232,2]
[352303645,1739033441972,-500.0,0.00011232,2]
[352303647,1739033441981,-548.19,0.00011232,2]
[352303649,1739033441991,-500.0,0.00011232,2]
[352303651,1739033442000,-10882.11,0.00011232,2]
[352303653,1739033442009,-500.0,0.00011232,2]
[352303655,1739033442019,-178.22823847,0.00011232,2]
[352303657,1739033442029,-2678.22,0.00011232,2]
[352303659,1739033442038,-500.0,0.00011232,2]
[352303661,1739033442047,-603.68,0.00011232,2]
[352303663,1739033442057,-998.6,0.00011232,2]
[352303665,1739033442066,-2828.72,0.00011232,2]
[352303667,1739033442075,-649.4,0.00011232,2]
[352303669,1739033442084,-1299.38,0.00011232,2]
[352303671,1739033442093,-647.36,0.00011232,2]
[352303673,1739033442103,-1798.84,0.00011232,2]
[352303674,1739033442112,-973.48,0.00011232,2]
[352303676,1739033442120,-3408.8,0.00011232,2]
[352303677,1739033442129,-741.16,0.00011232,2]
[352303679,1739033442138,-500.0,0.00011232,2]
[352303681,1739033442147,-500.0,0.00011232,2]
[352303684,1739033442158,-2328.48994508,0.00011269,2]
[352303686,1739033442167,-500.0,0.00011368,2]
[352303688,1739033442176,-320.2501722,0.00011368,2]
[352303690,1739033442185,-500.0,0.00011369,2]
[352303692,1739033442198,-500.0,0.00011369,2]
[352303694,1739033442207,-500.0,0.00011369,2]
[352303695,1739033442216,-500.0,0.00011369,2]
[352303697,1739033442226,-500.0,0.00011369,2]
[352303699,1739033442235,-500.0,0.00011369,2]
[352303702,1739033442245,-500.0,0.00011369,2]
[352303704,1739033442254,-500.0,0.00011369,2]
[352303705,1739033442263,-1062.83,0.00011369,2]
[352303707,1739033442275,-500.0,0.00011369,2]
[352303710,1739033442285,-1080.47,0.00011369,2]
[352303712,1739033442294,-509.97,0.00011369,2]
[352303713,1739033442304,-500.0,0.00011369,2]
[352303715,1739033442313,-643.07,0.00011369,2]
[352303717,1739033442322,-500.0,0.00011369,2]
[352303719,1739033442331,-500.0,0.00011369,2]
[352303721,1739033442340,-500.0,0.00011369,2]
[352303723,1739033442349,-1010.56,0.00011369,2]
[352303725,1739033442359,-500.0,0.00011369,2]
[352303727,1739033442368,-500.0,0.00011369,2]
[352303729,1739033442378,-737.14,0.00011369,2]
[352303731,1739033442387,-500.0,0.00011369,2]
[352303733,1739033442396,-500.0,0.00011369,2]
[352303735,1739033442405,-705.78,0.00011369,2]
[352303737,1739033442415,-500.0,0.00011369,2]
[352303739,1739033442424,-500.0,0.00011369,2]
[352303741,1739033442434,-500.0,0.00011369,2]
[352303743,1739033442443,-500.0,0.00011369,2]
[352303745,1739033442452,-766.77,0.00011369,2]
[352303747,1739033442461,-500.0,0.00011369,2]
[352303749,1739033442470,-500.0,0.00011369,2]
[352303751,1739033442479,-500.0,0.00011369,2]
[352303753,1739033442488,-500.0,0.00011369,2]
[352303755,1739033442497,-500.0,0.00011369,2]
[352303757,1739033442506,-500.0,0.00011369,2]
[352303759,1739033442516,-500.0,0.00011369,2]
[352303761,1739033442525,-847.48,0.00011369,2]
[352303763,1739033442534,-752.04,0.00011369,2]
[352303765,1739033442543,-584.62455967,0.00011369,2]
[352303767,1739033442552,-352.12296156,0.00011369,2]
[352303769,1739033442562,-554.9,0.00011369,2]
[352303771,1739033442571,-500.0,0.00011369,2]
[352303773,1739033442581,-860.83,0.00011369,2]
[352303775,1739033442590,-1152.86,0.00011369,2]
[352303777,1739033442599,-775.34,0.00011369,2]
[352303779,1739033442608,-286.75486092,0.00011369,2]
[352303782,1739033442618,-28237.64,0.00011369,2]
[352303785,1739033442628,-500.0,0.00011369,2]
[352303787,1739033442637,-2386.42,0.00011369,2]
[352303789,1739033442646,-9553.59,0.00011369,2]
[352303791,1739033442656,-3005.67,0.00011369,2]
[352303793,1739033442666,-1427.85,0.00011369,2]
[352303795,1739033442675,-1306.14,0.00011369,2]
[352303797,1739033442686,-900.42,0.00011369,2]
[352303799,1739033442696,-1031.74,0.00011369,2]
[352303802,1739033442705,-500.0,0.00011369,2]
[352303806,1739033442714,-873.14,0.00011369,2]
[352303809,1739033442724,-500.0,0.00011369,2]
[352303812,1739033442733,-500.0,0.00011369,2]
[352303815,1739033442742,-682.25,0.00011369,2]
[352303818,1739033442751,-949.44,0.00011369,2]
[352303822,1739033442760,-500.0,0.00011369,2]
[352303826,1739033442769,-500.0,0.00011369,2]
[352303830,1739033442779,-710.4,0.00011369,2]
[352303834,1739033442788,-1278.25,0.00011369,2]
[352303838,1739033442797,-500.0,0.00011369,2]
[352303841,1739033442806,-500.0,0.00011369,2]
[352303845,1739033442815,-500.0,0.00011369,2]
[352303847,1739033442825,-2322.33,0.00011369,2]
[352303849,1739033442834,-500.0,0.00011369,2]
[352303851,1739033442843,-1482.91,0.00011369,2]
[352303853,1739033442852,-584.36,0.00011369,2]
[352303855,1739033442862,-500.0,0.00011369,2]
[352303857,1739033442871,-1103.85,0.00011369,2]
[352303859,1739033442880,-502.3,0.00011369,2]
[352303861,1739033442889,-500.0,0.00011369,2]
[352303863,1739033442898,-926.6,0.00011369,2]
[352303865,1739033442908,-526.8473696,0.00011369,2]
[352303867,1739033442918,-5484.14,0.00011369,2]
[352303869,1739033442927,-500.0,0.00011369,2]
[352303871,1739033442937,-1011.35,0.00011369,2]
[352303873,1739033442949,-2169.19,0.00011369,2]
[352303875,1739033442959,-500.0,0.00011369,2]
[352303877,1739033442968,-548.19,0.00011369,2]
[352303879,1739033442977,-500.0,0.00011369,2]
[352303881,1739033442986,-10882.11,0.00011369,2]
[352303883,1739033442996,-500.0,0.00011369,2]
[352303885,1739033443005,-2678.22,0.00011369,2]
[352303887,1739033443014,-500.0,0.00011369,2]
[352303889,1739033443023,-603.68,0.00011369,2]
[352303891,1739033443033,-998.6,0.00011369,2]
[352303893,1739033443042,-2828.72,0.00011369,2]
[352303895,1739033443051,-649.4,0.00011369,2]
[352303897,1739033443060,-1299.38,0.00011369,2]
[352303899,1739033443069,-647.36,0.00011369,2]
[352303901,1739033443079,-1798.84,0.00011369,2]
[352303903,1739033443088,-973.48,0.00011369,2]
[352303905,1739033443097,-3408.8,0.00011369,2]
[352303907,1739033443106,-741.16,0.00011369,2]
[352303909,1739033443116,-500.0,0.00011369,2]
[352303911,1739033443125,-500.0,0.00011369,2]
[352303927,1739033443263,-154.392,0.0001145,2]
[352303929,1739033443274,-500.0,0.00011506,2]
[352303931,1739033443284,-500.0,0.00011506,2]
[352303933,1739033443293,-500.0,0.00011506,2]
[352303935,1739033443302,-500.0,0.00011506,2]
[352303937,1739033443311,-486.32161405,0.00011506,2]
[352303939,1739033443321,-1062.83,0.00011506,2]
[352303941,1739033443330,-500.0,0.00011506,2]
[352303944,1739033443338,-1080.47,0.00011506,2]
[352303946,1739033443348,-509.97,0.00011506,2]
[352303949,1739033443357,-500.0,0.00011506,2]
[352303952,1739033443366,-643.07,0.00011506,2]
[352303957,1739033443375,-500.0,0.00011506,2]
[352303959,1739033443384,-500.0,0.00011506,2]
[352303961,1739033443393,-500.0,0.00011506,2]
[352303963,1739033443402,-1010.56,0.00011506,2]
[352303965,1739033443411,-500.0,0.00011506,2]
[352303967,1739033443420,-175.03,0.00011506,2]
[352303969,1739033443429,-737.14,0.00011506,2]
[352303971,1739033443439,-500.0,0.00011506,2]
[352303973,1739033443456,-500.0,0.00011506,2]
[352303975,1739033443465,-705.78,0.00011506,2]
[352303977,1739033443474,-500.0,0.00011506,2]
[352303979,1739033443483,-500.0,0.00011506,2]
[352303981,1739033443492,-500.0,0.00011506,2]
[352303983,1739033443501,-500.0,0.00011506,2]
[352303985,1739033443510,-766.77,0.00011506,2]
[352303987,1739033443520,-500.0,0.00011506,2]
[352303989,1739033443529,-500.0,0.00011506,2]
[352303991,1739033443538,-500.0,0.00011506,2]
[352303993,1739033443548,-500.0,0.00011506,2]
[352303995,1739033443557,-500.0,0.00011506,2]
[352303997,1739033443566,-500.0,0.00011506,2]
[352303999,1739033443575,-847.48,0.00011506,2]
[352304001,1739033443585,-752.04,0.00011506,2]
[352304003,1739033443594,-554.9,0.00011506,2]
[352304005,1739033443603,-500.0,0.00011506,2]
[352304007,1739033443612,-860.83,0.00011506,2]
[352304009,1739033443621,-1152.86,0.00011506,2]
[352304011,1739033443631,-775.34,0.00011506,2]
[352304013,1739033443640,-28237.64,0.00011506,2]
[352304015,1739033443649,-500.0,0.00011506,2]
[352304017,1739033443659,-2386.42,0.00011506,2]
[352304019,1739033443668,-9553.59,0.00011506,2]
[352304020,1739033443678,-3005.67,0.00011506,2]
[352304022,1739033443687,-1427.85,0.00011506,2]
[352304024,1739033443698,-1306.14,0.00011506,2]
[352304026,1739033443707,-900.42,0.00011506,2]
[352304028,1739033443716,-1031.74,0.00011506,2]
[352304030,1739033443725,-500.0,0.00011506,2]
[352304032,1739033443734,-873.14,0.00011506,2]
[352304034,1739033443743,-500.0,0.00011506,2]
[352304036,1739033443753,-500.0,0.00011506,2]
[352304038,1739033443762,-682.25,0.00011506,2]
[352304040,1739033443771,-949.44,0.00011506,2]
[352304042,1739033443780,-500.0,0.00011506,2]
[352304044,1739033443790,-500.0,0.00011506,2]
[352304046,1739033443799,-710.4,0.00011506,2]
[352304048,1739033443808,-1278.25,0.00011506,2]
[352304050,1739033443818,-500.0,0.00011506,2]
[352304052,1739033443827,-500.0,0.00011506,2]
[352304054,1739033443836,-500.0,0.00011506,2]
[352304056,1739033443846,-2322.33,0.00011506,2]
[352304058,1739033443855,-500.0,0.00011506,2]
[352304060,1739033443864,-1482.91,0.00011506,2]
[352304062,1739033443873,-584.36,0.00011506,2]
[352304063,1739033443882,-500.0,0.00011506,2]
[352304065,1739033443891,-1103.85,0.00011506,2]
[352304067,1739033443901,-502.3,0.00011506,2]
[352304069,1739033443910,-500.0,0.00011506,2]
[352304071,1739033443920,-926.6,0.00011506,2]
[352304073,1739033443929,-5484.14,0.00011506,2]
[352304075,1739033443938,-500.0,0.00011506,2]
[352304077,1739033443949,-1011.35,0.00011506,2]
[352304079,1739033443958,-500.0,0.00011506,2]
[352304081,1739033443968,-2169.19,0.00011506,2]
[352304083,1739033443978,-548.19,0.00011506,2]
[352304085,1739033443988,-500.0,0.00011506,2]
[352304087,1739033443998,-10882.11,0.00011506,2]
[352304089,1739033444008,-500.0,0.00011506,2]
[352304091,1739033444018,-2678.22,0.00011506,2]
[352304093,1739033444028,-500.0,0.00011506,2]
[352304095,1739033444037,-603.68,0.00011506,2]
[352304097,1739033444047,-998.6,0.00011506,2]
[352304099,1739033444057,-2828.72,0.00011506,2]
[352304101,1739033444066,-649.4,0.00011506,2]
[352304103,1739033444075,-1299.38,0.00011506,2]
[352304105,1739033444084,-647.36,0.00011506,2]
[352304107,1739033444093,-1798.84,0.00011506,2]
[352304109,1739033444103,-973.48,0.00011506,2]
[352304111,1739033444112,-3408.8,0.00011506,2]
[352304113,1739033444122,-741.16,0.00011506,2]
[352304115,1739033444131,-500.0,0.00011543,2]
[352304117,1739033444140,-271.10270288,0.00011543,2]
[352304119,1739033444149,-500.0,0.00011564,2]
[352304121,1739033444159,-500.0,0.00011564,2]
[352304123,1739033444168,-154.5736464,0.000116,2]
[352304124,1739033444177,-151.0,0.000116,2]
[352304126,1739033444187,-550.82,0.00011621,2]
[352304129,1739033444208,-156.87499977,0.00011621,2]
[352304130,1739033444225,-500.0,0.00011643,2]
[352304132,1739033444236,-500.0,0.00011643,2]
[352304134,1739033444246,-500.0,0.00011643,2]
[352304136,1739033444255,-500.0,0.00011643,2]
[352304138,1739033444265,-1062.83,0.00011643,2]
[352304140,1739033444275,-500.0,0.00011643,2]
[352304142,1739033444287,-1080.47,0.00011643,2]
[352304144,1739033444297,-509.97,0.00011643,2]
[352304146,1739033444307,-500.0,0.00011643,2]
[352304148,1739033444319,-643.07,0.00011643,2]
[352304150,1739033444329,-500.0,0.00011643,2]
[352304152,1739033444339,-500.0,0.00011643,2]
[352304154,1739033444348,-500.0,0.00011643,2]
[352304156,1739033444357,-1010.56,0.00011643,2]
[352304158,1739033444367,-500.0,0.00011643,2]
[352304160,1739033444376,-737.14,0.00011643,2]
[352304162,1739033444386,-500.0,0.00011643,2]
[352304164,1739033444395,-500.0,0.00011643,2]
[352304166,1739033444405,-705.78,0.00011643,2]
[352304168,1739033444414,-500.0,0.00011643,2]
[352304170,1739033444423,-500.0,0.00011643,2]
[352304171,1739033444432,-500.0,0.00011643,2]
[352304173,1739033444442,-427.24333584,0.00011643,2]
[352304175,1739033444452,-766.77,0.00011643,2]
[352304177,1739033444462,-500.0,0.00011643,2]
[352304179,1739033444471,-267.39983664,0.00011643,2]
[352304181,1739033444481,-500.0,0.00011643,2]
[352304183,1739033444491,-500.0,0.00011643,2]
[352304185,1739033444500,-500.0,0.00011643,2]
[352304187,1739033444510,-500.0,0.00011643,2]
[352304189,1739033444519,-847.48,0.00011643,2]
[352304191,1739033444528,-752.04,0.00011643,2]
[352304193,1739033444538,-554.9,0.00011643,2]
[352304195,1739033444547,-500.0,0.00011643,2]
[352304197,1739033444556,-860.83,0.00011643,2]
[352304199,1739033444565,-1152.86,0.00011643,2]
[352304201,1739033444574,-775.34,0.00011643,2]
[352304203,1739033444583,-28237.64,0.00011643,2]
[352304205,1739033444593,-500.0,0.00011643,2]
[352304207,1739033444602,-2386.42,0.00011643,2]
[352304209,1739033444611,-9553.59,0.00011643,2]
[352304211,1739033444620,-3005.67,0.00011643,2]
[352304212,1739033444629,-1427.85,0.00011643,2]
[352304214,1739033444637,-1306.14,0.00011643,2]
[352304216,1739033444647,-900.42,0.00011643,2]
[352304218,1739033444656,-1031.74,0.00011643,2]
[352304220,1739033444666,-500.0,0.00011643,2]
[352304222,1739033444675,-873.14,0.00011643,2]
[352304224,1739033444685,-500.0,0.00011643,2]
[352304226,1739033444694,-500.0,0.00011643,2]
[352304228,1739033444703,-682.25,0.00011643,2]
[352304230,1739033444712,-949.44,0.00011643,2]
[352304232,1739033444722,-276.32,0.00011643,2]
[352304234,1739033444731,-500.0,0.00011643,2]
[352304236,1739033444740,-710.4,0.00011643,2]
[352304238,1739033444750,-1278.25,0.00011643,2]
[352304240,1739033444759,-265.22834968,0.00011643,2]
[352304242,1739033444768,-500.0,0.00011643,2]
[352304244,1739033444777,-254.87378909,0.00011643,2]
[352304246,1739033444787,-2322.33,0.00011643,2]
[352304248,1739033444796,-500.0,0.00011643,2]
[352304250,1739033444806,-1482.91,0.00011643,2]
[352304252,1739033444815,-584.36,0.00011643,2]
[352304254,1739033444824,-500.0,0.00011643,2]
[352304256,1739033444833,-1103.85,0.00011643,2]
[352304258,1739033444842,-502.3,0.00011643,2]
[352304259,1739033444851,-500.0,0.00011643,2]
[352304261,1739033444861,-926.6,0.00011643,2]
[352304263,1739033444870,-5484.14,0.00011643,2]
[352304265,1739033444880,-500.0,0.00011643,2]
[352304267,1739033444889,-1011.35,0.00011643,2]
[352304269,1739033444899,-500.0,0.00011643,2]
[352304271,1739033444908,-2169.19,0.00011643,2]
[352304273,1739033444918,-548.19,0.00011643,2]
[352304275,1739033444927,-500.0,0.00011643,2]
[352304277,1739033444937,-10882.11,0.00011643,2]
[352304279,1739033444947,-500.0,0.00011643,2]
[352304281,1739033444956,-2678.22,0.00011643,2]
[352304283,1739033444965,-500.0,0.00011643,2]
[352304285,1739033444974,-603.68,0.00011643,2]
[352304287,1739033444983,-998.6,0.00011643,2]
[352304289,1739033444992,-73.13393055,0.00011643,2]
[352304309,1739033445182,-2755.58606945,0.00011643,2]
[352304311,1739033445193,-649.4,0.00011643,2]
[352304313,1739033445207,-1299.38,0.00011643,2]
[352304315,1739033445217,-647.36,0.00011643,2]
[352304317,1739033445226,-1798.84,0.00011643,2]
[352304319,1739033445236,-973.48,0.00011643,2]
[352304321,1739033445247,-3408.8,0.00011643,2]
[352304323,1739033445257,-741.16,0.00011643,2]
[352304325,1739033445266,-151.0,0.000117,2]
[352304327,1739033445276,-151.0,0.000117,2]
[352304329,1739033445286,-12723.61608343,0.00011736,2]
[352304331,1739033445295,-151.243,0.00011739,2]
[352304333,1739033445304,-541.988,0.00011739,2]
[352304335,1739033445313,-1975.0,0.00011739,2]
[352304337,1739033445322,-2296.0,0.00011739,2]
[352304338,1739033445331,-396.0,0.00011739,2]
[352304340,1739033445341,-27245.17297298,0.00011779,5]
[352304342,1739033445350,-37641.40758941,0.0001178,5]
[352304366,1739033445574,-500.0,0.00011506,2]
[352304368,1739033445583,-410.76058566,0.00011506,2]
[352304391,1739033445807,-89.23941434,0.00011506,2]
[352304392,1739033445817,-500.0,0.00011643,2]
[352304393,1739033445825,-210.8554188,0.00011643,2]
[352304394,1739033445834,-294778.31075298,0.0001178,5]
[352304395,1739033445843,-500.0,0.0001178,2]
[352304396,1739033445852,-500.0,0.0001178,2]
[352304397,1739033445862,-500.0,0.0001178,2]
[352304398,1739033445870,-169.14377305,0.0001178,2]
[352304399,1739033445880,-1062.83,0.0001178,2]
[352304400,1739033445889,-500.0,0.0001178,2]
[352304401,1739033445898,-1080.47,0.0001178,2]
[352304402,1739033445907,-509.97,0.0001178,2]
[352304403,1739033445916,-500.0,0.0001178,2]
[352304404,1739033445925,-643.07,0.0001178,2]
[352304405,1739033445934,-500.0,0.0001178,2]
[352304406,1739033445943,-500.0,0.0001178,2]
[352304407,1739033445952,-500.0,0.0001178,2]
[352304408,1739033445961,-1010.56,0.0001178,2]
[352304409,1739033445970,-500.0,0.0001178,2]
[352304410,1739033445979,-737.14,0.0001178,2]
[352304411,1739033445988,-500.0,0.0001178,2]
[352304412,1739033445998,-500.0,0.0001178,2]
[352304414,1739033446007,-705.78,0.0001178,2]
[352304416,1739033446016,-504.68950702,0.0001178,2]
[352304418,1739033446025,-626.179423,0.0001178,2]
[352304420,1739033446035,-500.0,0.0001178,2]
[352304437,1739033446193,-626.179423,0.0001178,2]
[352304439,1739033446206,-151.0,0.0001178,2]
[352304441,1739033446215,-151.0,0.0001178,2]
[352304443,1739033446225,-76.16529161,0.0001178,2]
[352304446,1739033446238,-146.36694139,0.0001178,2]
[352304448,1739033446248,-222.532233,0.0001178,2]
[352304450,1739033446257,-151.0,0.0001178,2]
[352304452,1739033446267,-7.36082553,0.0001178,2]
[352305476,1739034632479,-1338.9639668,0.00010357,2]
[352305478,1739034632488,-12.67444015,0.00010383,2]
[352305480,1739034632499,-1721.58170385,0.00010383,2]
[352305482,1739034632509,-400.0,0.00010685,2]
[352305484,1739034632517,-300.0,0.00010957,2]
[352305486,1739034632526,-500.0,0.00010957,2]
[352305488,1739034632536,-500.0,0.00010958,2]
[352305490,1739034632545,-500.0,0.00010958,2]
[352305492,1739034632554,-557.64,0.00010958,2]
[352305493,1739034632563,-500.0,0.00010958,2]
[352305494,1739034632573,-500.0,0.00010958,2]
[352305495,1739034632585,-500.0,0.00010958,2]
[352305496,1739034632594,-500.0,0.00010958,2]
[352305497,1739034632604,-500.0,0.00010958,2]
[352305498,1739034632613,-500.0,0.00010958,2]
[352305499,1739034632622,-500.0,0.00010958,2]
[352305500,1739034632633,-500.0,0.00010958,2]
[352305501,1739034632642,-578.61075515,0.00010958,2]
[352305502,1739034632652,-500.0,0.00010958,2]
[352305503,1739034632662,-500.0,0.00010958,2]
[352305504,1739034632671,-500.0,0.00010958,2]
[352305505,1739034632681,-500.0,0.00010958,2]
[352305506,1739034632690,-500.0,0.00010958,2]
[352305507,1739034632700,-858.62,0.00010958,2]
[352305508,1739034632710,-503.1723947,0.00010958,2]
[352305509,1739034632720,-500.0,0.00010958,2]
[352305510,1739034632729,-1238.38,0.00010958,2]
[352305511,1739034632740,-500.0,0.00010958,2]
[352305512,1739034632750,-1259.84,0.00010958,2]
[352305513,1739034632759,-500.0,0.00010958,2]
[352305514,1739034632768,-323.66307761,0.00010958,2]
[352305515,1739034632778,-500.0,0.00010958,2]
[352305516,1739034632787,-500.0,0.00010958,2]
[352305517,1739034632797,-500.0,0.00010958,2]
[352305518,1739034632806,-722.68,0.00010958,2]
[352305519,1739034632816,-500.0,0.00010958,2]
[352305520,1739034632825,-500.0,0.00010958,2]
[352305521,1739034632835,-500.0,0.00010958,2]
[352305522,1739034632844,-500.0,0.00010958,2]
[352305523,1739034632854,-500.0,0.00010958,2]
[352305524,1739034632863,-500.0,0.00010958,2]
[352305525,1739034632873,-563.96504213,0.00010958,2]
[352305526,1739034632882,-500.0,0.00010958,2]
[352305527,1739034632891,-515.19,0.00010958,2]
[352305528,1739034632901,-500.0,0.00010958,2]
[352305529,1739034632910,-250.8217622,0.00010958,2]
[352305530,1739034632919,-500.0,0.00010958,2]
[352305531,1739034632929,-642.25683987,0.00010958,2]
[352305532,1739034632938,-500.0,0.00010958,2]
[352305533,1739034632948,-913.25,0.00010958,2]
[352305534,1739034632957,-500.0,0.00010958,2]
[352305535,1739034632966,-500.0,0.00010958,2]
[352305536,1739034632976,-856.9,0.00010958,2]
[352305537,1739034632985,-1168.17,0.00010958,2]
[352305538,1739034632994,-500.0,0.00010958,2]
[352305539,1739034633004,-500.0,0.00010958,2]
[352305540,1739034633013,-500.0,0.00010958,2]
[352305541,1739034633022,-500.0,0.00010958,2]
[352305542,1739034633031,-500.0,0.00010958,2]
[352305543,1739034633041,-500.0,0.00010958,2]
[352305544,1739034633051,-500.0,0.00010958,2]
[352305545,1739034633061,-500.0,0.00010958,2]
[352305546,1739034633071,-869.15,0.00010958,2]
[352305547,1739034633081,-390.16312571,0.00010958,2]
[352305548,1739034633091,-504.23,0.00010958,2]
[352305549,1739034633100,-279.6254206,0.00010958,2]
[352305550,1739034633109,-500.0,0.00010958,2]
[352305551,1739034633119,-298.31848083,0.00010958,2]
[352305552,1739034633129,-592.05,0.00010958,2]
[352305553,1739034633138,-500.0,0.00010958,2]
[352305554,1739034633148,-500.0,0.00010958,2]
[352305555,1739034633158,-500.0,0.00010958,2]
[352305556,1739034633173,-888.57,0.00010958,2]
[352305557,1739034633183,-500.0,0.00010958,2]
[352305558,1739034633193,-598.62,0.00010958,2]
[352305559,1739034633204,-500.0,0.00010958,2]
[352305560,1739034633214,-507.83,0.00010958,2]
[352305561,1739034633223,-500.0,0.00010958,2]
[352305562,1739034633233,-500.0,0.00010958,2]
[352305563,1739034633243,-500.0,0.00010958,2]
[352305564,1739034633253,-522.57205395,0.00010958,2]
[352305565,1739034633262,-500.0,0.00010958,2]
[352305566,1739034633272,-500.0,0.00010958,2]
[352305567,1739034633281,-502.69411031,0.00010958,2]
[352305568,1739034633291,-500.0,0.00010958,2]
[352305569,1739034633300,-501.89827675,0.00010958,2]
[352305570,1739034633310,-500.0,0.00010958,2]
[352305571,1739034633319,-500.0,0.00010958,2]
[352305572,1739034633329,-500.0,0.00010958,2]
[352305573,1739034633339,-500.0,0.00010958,2]
[352305574,1739034633349,-500.0,0.00010958,2]
[352305575,1739034633359,-500.0,0.00010958,2]
[352305576,1739034633369,-710.76,0.00010958,2]
[352305577,1739034633378,-500.0,0.00010958,2]
[352305578,1739034633388,-500.0,0.00010958,2]
[352305579,1739034633398,-500.0,0.00010958,2]
[352305580,1739034633408,-1065.0,0.00010958,2]
[352305581,1739034633417,-533.33450618,0.00010958,2]
[352305582,1739034633426,-500.0,0.00010958,2]
[352305583,1739034633436,-500.0,0.00010958,2]
[352305584,1739034633445,-500.0,0.00010958,2]
[352305585,1739034633455,-500.0,0.00010958,2]
[352305586,1739034633465,-500.0,0.00010958,2]
[352305587,1739034633475,-500.0,0.00010958,2]
[352305588,1739034633489,-803.81,0.00010958,2]
[352305589,1739034633498,-939.89,0.00010958,2]
[352305590,1739034633508,-1433.38,0.00010958,2]
[352305591,1739034633517,-500.0,0.00010958,2]
[352305592,1739034633527,-500.0,0.00010958,2]
[352305593,1739034633537,-500.0,0.00010958,2]
[352305594,1739034633547,-500.0,0.00010958,2]
[352305595,1739034633557,-500.0,0.00010958,2]
[352305596,1739034633567,-500.0,0.00010958,2]
[352305597,1739034633578,-500.0,0.00010958,2]
[352305598,1739034633591,-1035.15,0.00010958,2]
[352305599,1739034633601,-990.31,0.00010958,2]
[352305600,1739034633611,-500.0,0.00010958,2]
[352305601,1739034633620,-500.0,0.00010958,2]
[352305602,1739034633631,-440.43738262,0.00010958,2]
[352305603,1739034633641,-500.0,0.00010958,2]
[352305604,1739034633652,-500.0,0.00010958,2]
[352305605,1739034633663,-870.06,0.00010958,2]
[352305606,1739034633673,-3053.8,0.00010958,2]
[352305607,1739034633683,-500.0,0.00010958,2]
[352305608,1739034633692,-3982.29,0.00010958,2]
[352305609,1739034633702,-564.02,0.00010958,2]
[352305610,1739034633711,-33950.35,0.00010958,2]
[352305611,1739034633721,-500.0,0.00010958,2]
[352305612,1739034633731,-1776.17,0.00010958,2]
[352305613,1739034633740,-500.0,0.00010958,2]
[352305614,1739034633750,-500.0,0.00010958,2]